{"text_format":"1","workbook":"xlsx","n_sheets":1,"sheets":["Hoja1"],"not_rendered":{"charts":0,"images":0,"macros":1,"external_links":0,"defined_names":0,"comments":0,"pivot_tables":0},"unopened":[],"bounds":{"document_bytes":16777216,"sheet_cells":100000,"rows_first":2000,"rows_last":500,"rows_between":2000,"halvings":0,"cell_chars":16384,"cell_head_chars":4096},"cells_cut":0,"cells_raw":0,"read":"whole","date_system":"1900"}

{"sheet":"Hoja1","index":0,"n_rows":29,"n_cols":43,"rows_kept":29,"cut":false,"hidden":false,"merged":[[0,15,0,26],[2,17,2,18],[2,19,2,20],[2,21,2,22],[2,23,2,24],[2,25,2,26],[1,17,1,24],[1,25,1,26],[1,15,2,16],[2,7,2,8],[2,9,2,10],[2,11,2,12],[1,7,1,12],[0,1,0,12],[1,3,1,6],[2,5,2,6],[2,3,2,4],[1,1,2,2],[1,42,2,42],[0,39,0,42],[1,39,2,40],[1,28,2,29],[0,28,0,37],[1,30,1,37],[2,30,2,31],[2,32,2,33],[2,34,2,35],[2,36,2,37],[1,41,2,41]]}
[null,"COMPETENCIA LINGUÍSTICA 1º PRIMARIA (I)",null,null,null,null,null,null,null,null,null,null,null,null,null,"COMPETENCIA LINGUÍSTICA 1º PRIMARIA (II)",null,null,null,null,null,null,null,null,null,null,null,null,"COMPETENCIA LINGUÍSTICA 1º PRIMARIA (III)",null,null,null,null,null,null,null,null,null,null,"COMPETENCIA LINGUÍSTICA 1º PRIMARIA (IV)"]
[null,"1º A",null,"CIENCIAS DA NATUREZA",null,null,null,"LINGUA CASTELÁ",null,null,null,null,null,null,null,"1º A",null,"LINGUA GALEGA",null,null,null,null,null,null,null,"MATEMÁTICAS",null,null,"1º A",null,"LINGUA ESTRANXEIRA -INGLÉS",null,null,null,null,null,null,null,null,"1º A",null,"NOTA MEDIA","CUALIFICACIÓN"]
[null,null,null,"1º-CNB2.1.3 - Verbaliza e comparte emocións e sentimentos propios e alleos.",null,"1º-CNB3.2.1 - Recolle datos a partir da súa observación e comunícaos empregando diferentes soportes.",null,"1º-LCB.1.5.1 - Comprende o sentido global de textos orais de uso habitual, do ámbito escolar e social.",null,"1º-LCB.2.1.1 - Lee con pronunciación e entoación axeitada, textos sinxelos, de variada tipoloxía, breves e adaptados á súa idade.",null,"1º-LCB3.3.1 - Escribe, con axuda, en diferentes soportes, textos moi sinxelos propios do ámbito escolar e social: listas, notas, normas, felicitacións, instrucións, contos, anécdotas",null,null,null,null,null,"1º-LGB1.5.3 - Utiliza a lingua galega en calquera situación de comunicación dentro da aula e valora o seu uso fóra dela.",null,"1º-LGB2.1.2 - Comprende informacións concretas en textos sinxelos, propios de situacións cotiás, como invitacións, felicitacións, notas e avisos ou mensaxes curtas.",null,"1º-LGB3.1.2 - Elabora pequenos textos con certa coherencia e de xeito creativo.",null,"1º-LGB5.2.2 - Le, de forma guiada e en voz alta, textos adecuados aos intereses infantís, para chegar progresivamente á expresividade lectora.",null,"1º-MTB1.1.1 - Comunica verbalmente de forma sinxela o proceso seguido na resolución dun problema simple de matemáticas ou en contextos da realidade.",null,null,null,null,"1º-PLEB1.1 - Comprende a información esencial dun conto, rima ou canción moi breves e sinxelos, previamente traballados, emitidos lentamente, cunha pronuncia ben articulada, e con apoios visuais moi redundantes que axuden á comprensión.",null,"1º-PLEB2.1 - Fai presentacións moi breves e elementais preparadas e ensaiadas sobre temas moi próximos a si mesmo/a (dicir o seu nome, idade, a súa cor favorita, presentar á súa familia, indicar os seus gustos) cunha pronuncia e entoación comprensibles.",null,"1º-PLEB3.1 - Comprende palabras e frases moi sinxelas escritas, relacionadas cos temas traballados.",null,"1º-PLEB4.3 - Escribe frases moi sinxelas, lexibles, organizadas con coherencia na súa secuencia e con léxico relacionado co tema da escritura."]
[null,null,"ALUMNO /A","Nota",0.05,"Nota",0.05,"Nota",0.1,"Nota",0.1,"Nota",0.1,null,null,null,"ALUMNO /A","Nota",0.1,"Nota",0.1,"Nota",0.05,"Nota",0.1,"Nota",0.05,null,null,"ALUMNO /A","Nota",0.05,"Nota",0.05,"Nota",0.05,"Nota",0.05,null,null,"ALUMNO /A",{"$f":"SUM(AL4,AJ4,AH4,AF4,AA4,Y4,W4,U4,S4,M4,K4,I4,G4,E4)","v":1}]
[null,1,null,null,{"$f":"D5*0.05","v":0},null,{"$f":"F5*0.05","v":0},null,{"$f":"H5*0.1","v":0},null,{"$f":"J5*0.1","v":0},null,{"$f":"L5*0.1","v":0},null,null,1,null,null,{"$f":"R5*0.1","v":0},null,{"$f":"T5*0.1","v":0},null,{"$f":"V5*0.05","v":0},null,{"$f":"X5*0.1","v":0},null,{"$f":"Z5*0.05","v":0},null,1,null,null,{"$f":"AE5*0.05","v":0},null,{"$f":"AG5*0.05","v":0},null,{"$f":"AI5*0.05","v":0},null,{"$f":"AK5*0.05","v":0},null,1,null,{"$f":"SUM(AL5,AJ5,AH5,AF5,AA5,Y5,W5,U5,S5,M5,K5,I5,G5,E5)","v":0},{"$f":"IF(AP5<5,\"INSUFICIENTE\",IF(AP5<6,\"SUFICIENTE\",IF(AP5<7,\"BIEN\",IF(AP5<9,\"NOTABLE\",\"SOBRESALIENTE\"))))","v":"INSUFICIENTE"}]
[null,2,null,null,{"$f":"D6*0.05","v":0},null,{"$f":"F6*0.05","v":0},null,{"$f":"H6*0.1","v":0},null,{"$f":"J6*0.1","v":0},null,{"$f":"L6*0.1","v":0},null,null,2,null,null,{"$f":"R6*0.1","v":0},null,{"$f":"T6*0.1","v":0},null,{"$f":"V6*0.05","v":0},null,{"$f":"X6*0.1","v":0},null,{"$f":"Z6*0.05","v":0},null,2,null,null,{"$f":"AE6*0.05","v":0},null,{"$f":"AG6*0.05","v":0},null,{"$f":"AI6*0.05","v":0},null,{"$f":"AK6*0.05","v":0},null,2,null,0,{"$f":"IF(AP6<5,\"INSUFICIENTE\",IF(AP6<6,\"SUFICIENTE\",IF(AP6<7,\"BIEN\",IF(AP6<9,\"NOTABLE\",\"SOBRESALIENTE\"))))","v":"INSUFICIENTE"}]
[null,3,null,null,0,null,0,null,0,null,0,null,0,null,null,3,null,null,0,null,0,null,0,null,0,null,0,null,3,null,null,0,null,0,null,0,null,0,null,3,null,0,"INSUFICIENTE"]
[null,4,null,null,0,null,0,null,0,null,0,null,0,null,null,4,null,null,0,null,0,null,0,null,0,null,0,null,4,null,null,0,null,0,null,0,null,0,null,4,null,0,"INSUFICIENTE"]
[null,5,null,null,0,null,0,null,0,null,0,null,0,null,null,5,null,null,0,null,0,null,0,null,0,null,0,null,5,null,null,0,null,0,null,0,null,0,null,5,null,0,"INSUFICIENTE"]
[null,{"$f":"B9+1","v":6},null,null,0,null,0,null,0,null,0,null,0,null,null,{"$f":"P9+1","v":6},null,null,0,null,0,null,0,null,0,null,0,null,{"$f":"AC9+1","v":6},null,null,0,null,0,null,0,null,0,null,{"$f":"AN9+1","v":6},null,0,"INSUFICIENTE"]
[null,{"$f":"B10+1","v":7},null,null,0,null,0,null,0,null,0,null,0,null,null,{"$f":"P10+1","v":7},null,null,0,null,0,null,0,null,0,null,0,null,{"$f":"AC10+1","v":7},null,null,0,null,0,null,0,null,0,null,{"$f":"AN10+1","v":7},null,0,"INSUFICIENTE"]
[null,8,null,null,0,null,0,null,0,null,0,null,0,null,null,8,null,null,0,null,0,null,0,null,0,null,0,null,8,null,null,0,null,0,null,0,null,0,null,8,null,0,"INSUFICIENTE"]
[null,9,null,null,0,null,0,null,0,null,0,null,0,null,null,9,null,null,0,null,0,null,0,null,0,null,0,null,9,null,null,0,null,0,null,0,null,0,null,9,null,0,"INSUFICIENTE"]
[null,10,null,null,0,null,0,null,0,null,0,null,0,null,null,10,null,null,0,null,0,null,0,null,0,null,0,null,10,null,null,0,null,0,null,0,null,0,null,10,null,0,"INSUFICIENTE"]
[null,11,null,null,0,null,0,null,0,null,0,null,0,null,null,11,null,null,0,null,0,null,0,null,0,null,0,null,11,null,null,0,null,0,null,0,null,0,null,11,null,0,"INSUFICIENTE"]
[null,12,null,null,0,null,0,null,0,null,0,null,0,null,null,12,null,null,0,null,0,null,0,null,0,null,0,null,12,null,null,0,null,0,null,0,null,0,null,12,null,0,"INSUFICIENTE"]
[null,13,null,null,0,null,0,null,0,null,0,null,0,null,null,13,null,null,0,null,0,null,0,null,0,null,0,null,13,null,null,0,null,0,null,0,null,0,null,13,null,0,"INSUFICIENTE"]
[null,14,null,null,0,null,0,null,0,null,0,null,0,null,null,14,null,null,0,null,0,null,0,null,0,null,0,null,14,null,null,0,null,0,null,0,null,0,null,14,null,0,"INSUFICIENTE"]
[null,15,null,null,0,null,0,null,0,null,0,null,0,null,null,15,null,null,0,null,0,null,0,null,0,null,0,null,15,null,null,0,null,0,null,0,null,0,null,15,null,0,"INSUFICIENTE"]
[null,16,null,null,0,null,0,null,0,null,0,null,0,null,null,16,null,null,0,null,0,null,0,null,0,null,0,null,16,null,null,0,null,0,null,0,null,0,null,16,null,0,"INSUFICIENTE"]
[null,17,null,null,0,null,0,null,0,null,0,null,0,null,null,17,null,null,0,null,0,null,0,null,0,null,0,null,17,null,null,0,null,0,null,0,null,0,null,17,null,0,"INSUFICIENTE"]
[null,18,null,null,0,null,0,null,0,null,0,null,0,null,null,18,null,null,0,null,0,null,0,null,0,null,0,null,18,null,null,0,null,0,null,0,null,0,null,18,null,0,"INSUFICIENTE"]
[null,19,null,null,0,null,0,null,0,null,0,null,0,null,null,19,null,null,0,null,0,null,0,null,0,null,0,null,19,null,null,0,null,0,null,0,null,0,null,19,null,0,"INSUFICIENTE"]
[null,20,null,null,0,null,0,null,0,null,0,null,0,null,null,20,null,null,0,null,0,null,0,null,0,null,0,null,20,null,null,0,null,0,null,0,null,0,null,20,null,0,"INSUFICIENTE"]
[null,21,null,null,0,null,0,null,0,null,0,null,0,null,null,21,null,null,0,null,0,null,0,null,0,null,0,null,21,null,null,0,null,0,null,0,null,0,null,21,null,0,"INSUFICIENTE"]
[null,22,null,null,0,null,0,null,0,null,0,null,0,null,null,22,null,null,0,null,0,null,0,null,0,null,0,null,22,null,null,0,null,0,null,0,null,0,null,22,null,0,"INSUFICIENTE"]
[null,23,null,null,0,null,0,null,0,null,0,null,0,null,null,23,null,null,0,null,0,null,0,null,0,null,0,null,23,null,null,0,null,0,null,0,null,0,null,23,null,0,"INSUFICIENTE"]
[null,24,null,null,0,null,0,null,0,null,0,null,0,null,null,24,null,null,0,null,0,null,0,null,0,null,0,null,24,null,null,0,null,0,null,0,null,0,null,24,null,0,"INSUFICIENTE"]
[null,25,null,null,0,null,0,null,0,null,0,null,0,null,null,25,null,null,0,null,0,null,0,null,0,null,0,null,25,null,null,0,null,0,null,0,null,0,null,25,null,0,"INSUFICIENTE"]